bitfinex/quotes_ETHUSD_20260125
["timestamp","ask_amount","ask_price","bid_price","bid_amount"]
[1769326201722,0.002,2943.5,2943.3,0.001]
[1769326203629,1.00604324,2943.5,2943.1,0.001]
[1769326204127,1.10858866,2943.4,2943.1,0.001]
[1769326205218,1.17175496,2943.3,2943.1,0.001]
[1769326205594,1.2031777,2943.3,2943.1,0.001]
[1769326206598,0.9726205,2943.2,2943.1,0.001]
[1769326207127,1.10860531,2943.2,2942.9,0.001]
[1769326207618,0.9726205,2943.2,2942.9,0.001]
[1769326207927,1.10860531,2943.1,2942.9,0.001]
[1769326209828,1.10860531,2943.1,2942.4,0.001]
[1769326211732,1.95805445,2943.1,2942.4,0.001]
[1769326211931,0.23037046,2943.0,2942.4,0.001]
[1769326212832,1.20299096,2943.0,2942.4,0.001]
[1769326213817,1.20299096,2943.0,2942.6,0.001]
[1769326214429,1.33897761,2943.0,2942.6,0.001]
[1769326217548,0.002,2943.2,2942.6,0.97234328]
[1769326218056,0.002,2943.2,2942.6,1.00632683]
[1769326218554,0.002,2943.2,2942.6,0.97234328]
[1769326218765,0.002,2943.2,2942.6,0.96895108]
[1769326223146,0.03342274,2943.2,2942.6,0.96895108]
[1769326224939,0.03342274,2943.2,2942.4,0.97234328]
[1769326224940,0.19026483,2943.1,2942.4,0.97234328]
[1769326225243,0.03342274,2943.2,2942.4,0.97234328]
[1769326226254,0.002,2943.0,2942.4,0.97234328]
[1769326232156,0.00060234,2943.2,2942.4,0.97234328]
[1769326233355,0.99010403,2943.2,2942.4,0.001]
[1769326234152,0.03142274,2943.1,2942.4,0.001]
[1769326234457,1.02092443,2943.1,2942.4,0.001]
[1769326234654,1.20801887,2943.1,2942.4,0.001]
[1769326238167,1.20801887,2943.1,2942.6,0.001]
[1769326238660,0.002,2943.0,2942.6,0.001]
[1769326238957,0.98950169,2942.9,2942.6,0.001]
[1769326239126,0.98950169,2942.7,2942.0,0.001]
[1769326239322,0.98950169,2942.5,2942.0,0.001]
[1769326241133,0.98950169,2942.7,2942.0,0.001]
[1769326241664,0.03142274,2942.6,2942.0,0.001]
[1769326245271,1.02092443,2942.6,2942.0,0.001]
[1769326245673,1.87052108,2942.6,2942.0,0.001]
[1769326245971,0.18705211,2942.5,2942.0,0.001]
[1769326246162,0.03142274,2942.4,2942.0,0.001]
[1769326247274,1.02092443,2942.4,2942.0,0.001]
[1769326250480,1.02092443,2942.4,2942.2,0.001]
[1769326250653,1.02092443,2942.4,2942.0,0.001]
[1769326252691,0.20575951,2942.3,2942.0,0.001]
[1769326253788,0.23718225,2942.3,2942.0,0.001]
[1769326254478,1.22668394,2942.3,2941.5,0.001]
[1769326255076,1.1952612,2942.3,2941.5,0.001]
[1769326256491,1.1952612,2942.3,2941.5,0.96224291]
[1769326256699,0.98950169,2942.3,2941.5,0.96224291]
[1769326257058,1.20797654,2942.5,2941.5,0.96224291]
[1769326259266,1.02092443,2942.5,2941.5,0.96224291]
[1769326262200,1.02092443,2942.5,2941.7,0.001]
[1769326262402,0.002,2942.3,2941.7,0.001]
[1769326263398,0.91514243,2942.3,2941.7,0.001]
[1769326263595,0.002,2942.3,2941.7,0.001]
[1769326267597,0.002,2942.3,2941.7,0.97875852]
[1769326267802,0.002,2942.3,2941.7,1.01275246]
[1769326268806,0.002,2942.3,2941.7,0.97875852]
[1769326271275,0.002,2942.3,2941.8,0.03399279]
[1769326272107,0.002,2942.3,2941.7,0.97875852]
[1769326274121,0.002,2942.3,2941.9,0.001]
[1769326274339,0.002,2942.1,2941.9,0.001]
[1769326287221,0.002,2942.1,2941.9,0.93732602]
[1769326288624,0.002,2942.1,2941.9,0.001]
[1769326298703,0.002,2942.3,2941.9,0.91364727]
[1769326298905,0.002,2942.3,2942.0,0.03399048]
[1769326303531,0.002,2942.3,2941.9,0.91364727]
[1769326307448,0.002,2942.3,2942.0,0.03399048]
[1769326308840,0.002,2942.1,2942.0,0.03399048]
[1769326309050,0.002,2942.3,2942.0,0.03399048]
[1769326310523,0.002,2942.5,2942.0,0.03399048]
[1769326310723,0.002,2942.5,2942.0,0.94663775]
[1769326311543,0.002,2942.5,2942.0,0.03399048]
[1769326311729,0.002,2942.5,2941.9,0.001]
[1769326313644,0.002,2942.5,2941.9,0.03499163]
[1769326319345,0.002,2942.5,2941.9,0.001]
[1769326320548,0.002,2942.5,2942.1,0.001]
[1769326320750,0.002,2942.3,2942.1,0.001]
[1769326328238,0.002,2942.5,2942.1,0.03498493]
[1769326328447,0.002,2942.5,2942.1,0.001]
[1769326330650,0.002,2942.5,2942.1,0.03498932]
[1769326331656,0.002,2942.5,2942.1,0.98960117]
[1769326332542,0.002,2942.5,2942.3,0.001]
[1769326332853,0.93695594,2942.9,2942.3,0.001]
[1769326334150,0.002,2943.0,2942.3,0.001]
[1769326342262,0.002,2943.0,2942.4,4.52727199]
[1769326344067,0.002,2942.8,2942.4,4.52727199]
[1769326344234,0.002,2943.0,2942.4,4.52727199]
[1769326345041,1.74557837,2943.4,2942.7,3.53379212]
[1769326346972,1.74557837,2943.4,2942.7,3.56777451]
[1769326348539,1.74557837,2943.4,2942.7,4.56125438]
[1769326348735,0.002,2943.4,2942.7,3.56777451]
[1769326348940,0.91502886,2943.4,2942.5,3.53151563]
[1769326349172,0.91502886,2943.4,2942.5,3.56550033]
[1769326349873,0.91502886,2943.4,2942.5,4.5589802]
[1769326350896,0.002,2943.4,2942.6,0.99347987]
[1769326351175,0.002,2943.4,2942.8,4.5249955]
[1769326351761,0.002,2943.4,2942.9,0.03398008]
[1769326352265,0.91502886,2943.4,2942.6,0.03398355]
[1769326352645,0.91502886,2943.4,2942.5,3.53151563]
[1769326352646,0.91502886,2943.4,2942.5,3.56550033]
[1769326353346,0.91502886,2943.4,2942.5,4.54343858]
[1769326353876,0.002,2943.4,2942.6,0.97793825]
[1769326354176,0.002,2943.4,2942.6,1.0119218]
[1769326354674,0.91304733,2943.4,2942.6,1.0119218]
[1769326356258,0.002,2943.2,2942.6,1.0119218]
[1769326360574,0.002,2943.2,2942.6,0.03398355]
[1769326362382,0.002,2943.2,2942.5,4.54443858]
[1769326368403,0.002,2943.2,2942.7,0.001]
[1769326380808,0.002,2943.2,2942.9,0.001]
[1769326389515,0.002,2943.4,2942.9,0.001]
[1769326389719,0.002,2943.4,2942.9,0.97522996]
[1769326392419,0.002,2943.4,2943.1,0.001]
[1769326403114,0.002,2943.4,2943.1,0.03497315]
[1769326404033,0.002,2943.2,2943.1,0.03497315]
[1769326404225,0.002,2943.2,2943.1,0.001]
[1769326410014,0.94657412,2943.2,2942.9,0.001]
[1769326410339,0.94657412,2943.2,2942.7,0.001]
[1769326417850,0.94657412,2943.2,2942.9,0.001]
[1769326419445,0.002,2943.2,2942.9,0.001]
[1769326424856,0.00060234,2943.4,2942.9,0.001]
[1769326429269,0.002,2943.2,2942.9,0.001]
[1769326440997,0.002,2943.2,2943.1,0.001]
[1769326442479,0.90602338,2943.2,2942.9,0.001]
[1769326442659,0.90602338,2943.2,2942.7,0.001]
[1769326443264,1.75544389,2943.2,2942.7,0.001]
[1769326443474,1.10902293,2943.1,2942.3,0.001]
[1769326443665,0.93347854,2942.9,2942.3,0.001]
[1769326443863,0.93347854,2942.9,2942.1,0.001]
[1769326450087,0.96490128,2942.9,2942.1,0.001]
[1769326451568,0.93347854,2942.8,2942.1,0.001]
[1769326451769,0.93347854,2942.6,2942.1,0.001]
[1769326453068,0.93347854,2942.6,2942.3,0.001]
[1769326460785,0.93347854,2942.6,2941.7,0.92570708]
[1769326465592,0.002,2942.4,2941.7,0.92570708]
[1769326471315,0.002,2942.4,2941.7,0.00060106]
[1769326471316,0.91444587,2942.4,2941.7,0.00060106]
[1769326482727,0.002,2942.4,2941.7,0.93185248]
[1769326483041,0.002,2942.4,2941.8,0.03399279]
[1769326486549,0.002,2942.4,2941.7,0.00060106]
[1769326488946,0.002,2942.2,2941.7,0.00060106]
[1769326493031,0.002,2942.2,2941.7,0.93185248]
[1769326493347,0.002,2942.2,2941.8,0.18157222]
[1769326500660,0.002,2942.2,2941.7,0.034595]
[1769326500851,0.002,2942.2,2941.7,0.00060106]
[1769326501440,0.002,2942.0,2941.7,0.00060106]
[1769326505543,0.002,2942.0,2941.7,0.034595]
[1769326512797,0.002,2942.4,2941.8,0.93950112]
[1769326513077,0.00100401,2942.4,2941.9,0.97349275]
[1769326515177,0.00100703,2942.6,2941.9,0.97349275]
[1769326521271,0.00100703,2942.6,2941.9,0.93950112]
[1769326521577,0.00100703,2942.6,2941.8,0.03399279]
[1769326521878,0.93951037,2942.6,2941.8,0.03399279]
[1769326522083,0.93951037,2942.6,2941.7,0.98672019]
[1769326526680,0.93951037,2942.6,2941.9,0.001]
[1769326528360,0.93951037,2942.6,2941.9,0.03499163]
[1769326529491,0.00100703,2942.6,2941.9,0.03499163]
[1769326531074,0.00100703,2942.6,2941.9,0.98711682]
[1769326536695,0.94953645,2942.6,2941.9,0.03499163]
[1769326536878,0.94953645,2942.6,2941.9,0.001]
[1769326538400,0.94953645,2942.6,2942.1,0.001]
[1769326551616,0.94852942,2942.3,2941.9,0.001]
[1769326551790,3.53315636,2942.4,2941.7,0.00060106]
[1769326551791,0.94852942,2942.1,2941.7,0.00060106]
[1769326555301,0.94852942,2942.5,2941.7,0.00060106]
[1769326557111,0.97995216,2942.5,2941.7,0.00060106]
[1769326557994,0.94852942,2942.5,2941.7,0.00060106]
[1769326558202,1.13843671,2942.4,2941.7,0.00060106]
[1769326559016,0.94852942,2942.4,2941.7,0.00060106]
[1769326560794,0.94953645,2942.6,2941.7,0.00060106]
[1769326561004,0.94953645,2942.6,2941.9,0.001]
[1769326561199,0.002,2942.4,2941.9,0.001]
[1769326561517,0.002,2942.4,2942.0,0.98725351]
[1769326561814,0.002,2942.4,2942.0,1.02124399]
[1769326562015,0.002,2942.4,2942.0,0.98725351]
[1769326563485,0.002,2942.4,2942.0,1.02124399]
[1769326568916,0.002,2942.4,2942.0,0.98725351]
[1769326572824,0.001,2942.2,2942.0,0.98725351]
[1769326585433,0.001,2942.2,2941.9,4.28014799]
[1769326590955,0.001,2942.2,2941.9,0.74699163]
[1769326594470,2e-06,2942.2,2941.9,0.74699163]
[1769326596065,2e-06,2942.2,2942.1,0.001]
[1769326622094,0.002,2942.7,2942.1,0.97618444]
[1769326622095,0.00100101,2942.7,2942.1,0.97618444]
[1769326622255,0.002,2942.9,2942.2,0.94119512]
[1769326622455,0.002,2942.9,2942.2,0.97518329]
[1769326622682,0.92908498,2942.9,2942.2,0.03398817]
[1769326630492,0.92908498,2942.9,2942.4,0.001]
[1769326630694,0.002,2942.7,2942.4,0.001]
[1769326637672,0.001,2942.7,2942.4,0.1833388]
[1769326639296,0.002,2942.9,2942.4,0.1833388]
[1769326639502,0.00100301,2942.9,2942.4,0.1833388]
[1769326642304,0.002,2942.7,2942.4,0.1833388]
[1769326644480,0.00100301,2942.9,2942.4,0.1833388]
[1769326644686,0.9572699,2943.1,2942.4,0.1833388]
[1769326646107,0.96126187,2943.2,2942.4,0.1833388]
[1769326653703,0.96126187,2943.2,2942.6,0.001]
[1769326654035,0.98027265,2943.0,2942.6,0.001]
[1769326655748,1.01169539,2943.0,2942.4,0.001]
[1769326656034,0.97827265,2942.8,2942.4,0.001]
[1769326665822,0.97827265,2942.8,2942.6,0.001]
[1769326666220,0.98027265,2942.8,2942.6,0.001]
[1769326666621,0.002,2942.8,2942.6,0.001]
[1769326689457,0.002,2942.8,2942.4,0.97012956]
[1769326689663,0.002,2942.8,2942.4,0.001]
[1769326690165,0.002,2942.6,2942.2,0.96912956]
[1769326690365,0.35561934,2942.6,2942.2,0.96912956]
[1769326696288,0.002,2942.6,2942.2,0.96912956]
[1769326702098,0.002,2942.6,2942.4,0.001]
[1769326740558,0.002,2942.8,2942.4,0.001]
[1769326749038,0.002,2942.6,2942.4,0.001]
[1769326749439,0.002,2942.6,2942.4,0.03498586]
[1769326750462,0.002,2942.6,2942.4,0.001]
[1769326759174,0.002,2942.8,2942.4,0.001]
[1769326760483,0.002,2942.8,2942.6,0.001]
[1769326791710,0.002,2943.2,2942.6,0.95622412]
[1769326795699,0.002,2943.2,2942.8,0.95622412]
[1769326795910,0.002,2943.0,2942.8,0.95622412]
[1769326796434,0.002,2943.2,2942.8,0.95622412]
[1769326801444,0.00060234,2943.4,2942.8,0.95622412]
[1769326802325,0.00060234,2943.4,2942.9,0.95522412]
[1769326807636,0.001,2943.2,2942.9,0.95522412]
[1769326807949,0.00060535,2943.5,2942.9,0.95522412]
[1769326819658,0.00060535,2943.5,2943.1,0.001]
[1769326831268,0.00060535,2943.5,2943.3,0.001]
[1769326831476,0.98826066,2943.5,2943.3,0.001]
[1769326831677,0.98826066,2943.5,2942.8,0.001]
[1769326831859,0.98826066,2943.5,2942.9,0.13594136]
[1769326832262,0.98765531,2943.4,2942.9,0.13594136]
[1769326833656,1.01907805,2943.4,2942.6,0.001]
[1769326833856,1.01907805,2943.4,2942.5,4.00596169]
[1769326834570,1.01907805,2943.4,2942.5,3.87]
[1769326835081,0.91907805,2943.4,2942.5,3.87]
[1769326835862,0.93934107,2943.2,2942.5,2.03215405]
[1769326837484,0.93934107,2943.2,2942.4,0.001]
[1769326837984,0.88934107,2943.2,2942.4,0.001]
[1769326838561,0.92076381,2943.2,2942.4,0.001]
[1769326838959,0.19470671,2943.1,2942.4,0.001]
[1769326841680,0.03142274,2943.0,2942.4,0.001]
[1769326843688,0.03142274,2943.0,2942.6,0.001]
[1769326846294,0.03142274,2943.0,2942.6,1.026]
[1769326846590,0.002,2943.2,2942.6,1.026]
[1769326850486,0.002,2943.2,2942.6,0.001]
[1769326853603,0.47514028,2943.2,2942.6,0.001]
[1769326855914,0.47514028,2943.2,2942.8,0.001]
[1769326862389,1.32455795,2943.2,2942.8,0.001]
[1769326862786,1.32455795,2943.2,2942.6,0.001]
[1769326863185,2.34442669,2943.2,2942.6,0.001]
[1769326863381,0.57419827,2943.1,2942.6,0.001]
[1769326863583,0.03142274,2943.0,2942.6,0.001]
[1769326867922,0.03142274,2943.0,2942.8,0.001]
[1769326868121,0.03142274,2943.0,2942.6,0.001]
[1769326870321,0.03142274,2943.1,2942.6,0.001]
[1769326875038,0.88086823,2943.1,2942.6,0.001]
[1769326875537,0.03142274,2943.1,2942.6,0.001]
[1769326876340,0.60562234,2943.1,2942.6,1.026]
[1769326876841,0.03142274,2943.1,2942.6,1.026]
[1769326880050,0.03142274,2943.1,2942.8,0.001]
[1769326880248,0.002,2942.9,2942.8,0.001]
[1769326951319,0.002,2942.9,2942.6,1.026]
[1769326951515,0.002,2942.9,2942.1,0.001]
[1769326951516,3.53296283,2942.7,2942.1,0.001]
[1769326951721,0.38471902,2942.6,2942.1,0.001]
[1769326952445,1.23431843,2942.6,2942.1,0.001]
[1769326960752,1.23431843,2942.6,2941.9,0.9944375]
[1769326962647,1.23431843,2942.6,2942.3,0.001]
[1769326962826,1.23431843,2942.6,2941.9,0.9944375]
[1769326963027,0.002,2942.4,2941.9,0.9944375]
[1769326963236,0.03342274,2942.4,2941.9,0.9944375]
[1769326968356,0.88306935,2942.4,2941.9,0.9944375]
[1769326968538,0.03342274,2942.4,2941.9,0.9944375]
[1769326969050,0.88307422,2942.4,2941.9,0.9944375]
[1769326969261,0.18704491,2942.3,2941.9,0.9944375]
[1769326970558,0.03142274,2942.2,2941.9,0.9944375]
[1769326970857,0.21846765,2942.3,2941.9,0.9944375]
[1769326974764,0.21846765,2942.3,2942.1,0.002]
[1769326975057,0.21846765,2942.3,2941.9,0.9944375]
[1769326976533,0.21846765,2942.3,2941.9,0.99104112]
[1769326987165,0.21846765,2942.3,2942.1,2.01e-06]
[1769326991680,1.06814324,2942.3,2942.1,2.01e-06]
[1769326991869,0.21846765,2942.3,2942.1,2.01e-06]
[1769326996477,0.21846765,2942.3,2941.9,0.99304112]
[1769326996652,0.37552086,2942.2,2941.9,0.99304112]
[1769326996978,0.03142274,2942.1,2941.9,0.99304112]
[1769326997280,0.03142274,2942.1,2941.7,0.00060106]
[1769326999053,0.03342274,2942.1,2941.7,0.00060106]
[1769327000698,0.03002404,2942.1,2941.7,0.00060106]
[1769327001481,0.87975903,2942.1,2941.7,0.00060106]
[1769327001878,0.4654109,2942.0,2941.7,0.00060106]
[1769327002074,0.02462534,2941.9,2941.7,0.00060106]
[1769327003186,0.02462534,2941.9,2941.5,0.93329903]
[1769327003363,0.02462534,2941.9,2941.5,0.001]
[1769327004282,0.87441957,2941.9,2941.5,0.001]
[1769327004452,0.92337862,2941.9,2941.5,0.001]
[1769327004657,1.77317146,2941.9,2941.5,0.001]
[1769327004953,0.92337862,2941.9,2941.5,0.001]
[1769327005160,1.77317514,2941.9,2941.5,0.001]
[1769327007270,1.77317514,2941.9,2941.3,0.93329903]
[1769327007469,0.5172244,2941.8,2941.3,0.93329903]
[1769327007671,0.02462534,2941.7,2941.3,0.93329903]
[1769327010976,0.02462534,2941.7,2941.5,0.002]
[1769327011186,0.02462534,2941.7,2941.3,0.001]
[1769327012380,0.87447467,2941.7,2941.3,0.001]
[1769327013394,0.02462534,2941.7,2941.3,0.001]
[1769327013589,0.54186389,2941.7,2941.3,0.001]
[1769327022811,0.54186389,2941.7,2941.5,0.002]
[1769327022992,0.001,2941.5,2941.3,0.001]
[1769327028927,0.001,2941.5,2941.1,0.002]
[1769327032010,3.53643322,2941.4,2940.9,0.002]
[1769327032215,0.02462534,2941.3,2940.9,0.002]
[1769327034701,0.02562534,2941.3,2940.9,0.002]
[1769327036736,0.02562534,2941.3,2940.9,0.91845362]
[1769327042338,0.02562534,2941.3,2940.9,0.002]
[1769327042339,0.87559463,2941.3,2940.9,0.002]
[1769327042546,0.44120279,2941.2,2940.7,0.002]
[1769327042726,3.56105856,2941.1,2940.7,0.002]
[1769327044156,4.41108406,2941.1,2940.7,0.002]
[1769327045446,4.41108995,2941.1,2940.7,0.002]
[1769327046054,0.87465673,2941.1,2940.7,0.002]
[1769327046344,0.02462534,2941.1,2940.7,0.002]
[1769327046549,0.87464806,2941.1,2940.9,0.002]
[1769327046853,0.87464806,2941.1,2940.7,0.002]
[1769327047519,0.02462534,2941.1,2940.7,0.002]
[1769327048342,1.436836,2941.1,2940.7,0.002]
[1769327049344,0.58681345,2941.1,2940.7,0.002]
[1769327051540,0.02462534,2941.1,2940.7,0.002]
[1769327058770,0.02462534,2941.1,2940.9,0.002]
[1769327059069,0.001,2940.9,2940.7,0.002]
[1769327105041,0.001,2940.9,2940.5,0.91645362]
[1769327108056,0.001,2940.9,2940.7,0.002]
[1769327108260,0.35389324,2940.8,2940.5,0.91845362]
[1769327108448,0.001,2940.9,2940.5,0.91845362]
[1769327121066,0.001,2940.7,2940.5,0.91845362]
[1769327123962,0.001,2941.3,2940.7,0.92812573]
[1769327133187,0.001,2941.3,2940.7,0.93012573]
[1769327133489,0.001,2941.1,2940.7,0.93012573]
[1769327145603,0.001,2941.1,2940.9,0.002]
[1769327147781,0.35776473,2941.1,2940.7,0.002]
[1769327148510,0.001,2941.1,2940.7,0.002]
[1769327158121,0.001,2941.1,2940.9,0.002]
[1769327160721,0.001,2941.1,2940.7,0.002]
[1769327161818,0.001,2941.1,2940.7,0.98569415]
[1769327162232,0.001,2941.3,2940.8,0.98369415]
[1769327170029,0.001,2941.3,2941.0,0.9612384]
[1769327170341,0.001,2941.1,2941.0,0.9612384]
[1769327175037,0.001,2941.1,2940.9,0.002]
[1769327182468,0.001,2941.1,2941.0,0.002]
[1769327188745,0.001,2941.1,2940.9,0.002]
[1769327191842,0.001,2941.1,2940.8,0.002]
[1769327192048,0.35496232,2941.1,2940.7,0.002]
[1769327195752,0.35496232,2941.1,2941.0,0.002]
[1769327196066,0.35496232,2941.1,2940.8,0.002]
[1769327208195,0.35496232,2941.1,2940.9,0.002]
[1769327208366,0.35496232,2941.1,2940.8,0.002]
[1769327215293,0.001,2941.3,2940.9,0.9948648]
[1769327220272,0.001,2941.1,2940.9,0.9948648]
[1769327226999,0.001,2941.1,2940.8,0.002]
[1769327230106,0.001,2941.1,2940.8,0.92777376]
[1769327231885,0.001,2941.1,2941.0,0.002]
[1769327266055,0.001,2941.5,2941.2,0.93764229]
[1769327278872,0.001,2941.3,2941.2,0.93764229]
[1769327301097,0.001,2941.3,2941.0,0.93927329]
[1769327303695,0.001,2941.5,2941.0,0.93927329]
[1769327313538,0.001,2941.5,2941.2,0.002]
[1769327313742,0.001,2941.3,2941.2,0.002]
[1769327314039,0.001,2941.5,2941.2,0.002]
[1769327325454,0.001,2941.3,2941.2,0.002]
[1769327325625,0.001,2941.5,2941.2,0.002]
[1769327336961,0.001,2941.3,2941.2,0.002]
[1769327352773,0.001,2941.3,2941.0,0.002]
[1769327353073,0.9224375,2941.2,2940.6,0.002]
[1769327353242,3.53571272,2940.9,2940.5,0.002]
[1769327355252,1.36835252,2941.1,2940.5,0.002]
[1769327359265,0.44591502,2941.1,2940.5,0.002]
[1769327359666,0.44591502,2941.1,2940.7,0.002]
[1769327364985,0.95146154,2941.3,2940.7,0.002]
[1769327366190,0.9234375,2941.3,2940.7,0.002]
[1769327371464,0.001,2941.1,2940.7,0.002]
[1769327383590,0.001,2940.9,2940.7,0.002]
[1769327388988,0.97798137,2940.9,2940.7,0.002]
[1769327389397,0.02902404,2940.9,2940.7,0.002]
[1769327389602,0.02902404,2940.9,2940.7,0.001]
[1769327389987,0.001,2940.9,2940.5,0.00100301]
[1769327392610,0.94995733,2940.9,2940.5,0.00100301]
[1769327392783,0.02802404,2940.8,2940.5,0.00100301]
[1769327392985,0.97698137,2940.8,2940.1,0.002]
[1769327393187,0.97698137,2940.8,2939.8,0.002]
[1769327393188,0.94895733,2940.7,2939.8,0.002]
[1769327393514,0.94895733,2940.5,2939.8,0.002]
[1769327394716,0.94895733,2940.4,2939.8,0.002]
[1769327400389,0.02802404,2940.5,2939.8,0.002]
[1769327400594,0.02802404,2940.5,2939.8,0.9120084]
[1769327400893,0.87813457,2940.8,2939.8,0.9120084]
[1769327401093,0.18280919,2940.7,2939.8,0.9120084]
[1769327406427,0.18280919,2940.7,2940.0,0.002]
[1769327406802,0.18380919,2940.7,2940.0,0.002]
[1769327407001,0.18380919,2940.7,2940.0,0.95744209]
[1769327408515,0.001,2940.7,2940.0,0.95744209]
[1769327413826,0.001,2940.7,2940.1,0.98372527]
[1769327419251,0.001,2940.5,2940.1,0.98372527]
[1769327422945,0.001,2940.5,2940.0,0.002]
[1769327429873,0.001,2940.5,2940.0,0.98572527]
[1769327430553,0.001,2940.5,2940.2,0.98372527]
[1769327430741,0.001,2940.3,2940.2,0.98372527]
[1769327432576,0.001,2940.3,2940.0,0.002]
[1769327432776,0.001,2940.3,2940.0,0.98572527]
[1769327432973,0.001,2940.3,2940.1,0.03401244]
[1769327433896,0.001,2940.3,2940.0,0.98572527]
[1769327438692,0.001,2940.3,2940.0,0.002]
[1769327439076,0.001,2940.3,2939.5,1.845039]
[1769327439275,0.001,2940.3,2939.5,1.86803559]
[1769327441270,0.001,2940.3,2939.6,0.9945694]
[1769327442701,0.001,2940.3,2939.7,0.002]
[1769327443070,0.001,2940.1,2939.7,0.002]
[1769327449078,0.98226208,2940.1,2939.7,0.002]
[1769327455630,0.98226208,2939.9,2939.7,0.002]
[1769327455829,0.001,2939.9,2939.7,0.002]
[1769327521242,0.001,2939.9,2939.7,0.001]
[1769327521622,0.001,2939.9,2939.7,2.01e-06]
[1769327532566,0.001,2939.9,2939.7,0.9008317]
[1769327537572,0.001,2939.9,2939.7,2.01e-06]
[1769327537981,0.001,2939.9,2939.5,0.002]
[1769327538178,0.04351845,2939.9,2939.5,0.002]
[1769327540809,0.001,2939.9,2939.5,0.002]
[1769327546299,0.001,2939.9,2939.5,0.93348804]
[1769327548221,0.001,2939.9,2939.7,0.93348804]
[1769327548403,1.09957842,2940.6,2939.7,0.93348804]
[1769327548404,0.001,2941.1,2940.1,0.93148804]
[1769327548601,0.001,2941.1,2940.5,0.93148804]
[1769327548800,0.001,2941.1,2940.5,0.92347585]
[1769327550001,0.001,2941.1,2940.2,1.64348804]
[1769327550246,0.96445478,2941.1,2940.2,0.93148804]
[1769327551807,0.001,2941.1,2940.3,0.93148804]
[1769327552006,0.001,2941.1,2940.1,4.39037333]
[1769327552007,0.001,2941.1,2940.2,0.93148804]
[1769327554768,4.45513065,2940.8,2939.7,0.96349474]
[1769327555042,0.9575568,2940.7,2939.7,0.002]
[1769327555203,0.91504992,2940.5,2939.7,0.002]
[1769327555403,0.95756114,2940.4,2939.7,0.002]
[1769327556612,0.04251122,2940.4,2939.7,0.002]
[1769327556936,0.04251266,2940.3,2939.7,0.96349474]
[1769327557130,0.04250977,2940.5,2939.7,0.96349474]
[1769327557337,0.23223734,2940.4,2939.7,0.96349474]
[1769327557537,0.04251266,2940.3,2939.7,0.96349474]
[1769327559835,0.23223734,2940.4,2939.9,0.002]
[1769327560132,1.19573208,2940.4,2939.9,0.002]
[1769327561208,0.23223734,2940.4,2939.9,0.002]
[1769327561431,1.19573208,2940.4,2939.9,0.002]
[1769327565237,0.23223734,2940.4,2939.9,0.002]
[1769327565447,0.96349474,2940.5,2939.9,0.002]
[1769327570049,1.87854466,2940.5,2939.9,0.002]
[1769327570439,0.96349474,2940.5,2939.9,0.002]
[1769327580054,0.04251122,2940.4,2939.9,0.002]
[1769327580258,0.95756114,2940.4,2939.9,0.002]
[1769327580460,1.10715551,2940.3,2939.9,0.002]
[1769327580642,0.04251411,2940.2,2939.9,0.002]
[1769327581559,0.95756403,2940.2,2939.9,0.002]
[1769327581934,1.09368628,2940.2,2939.9,0.002]
[1769327583570,1.09368628,2940.2,2940.1,0.001]
[1769327583742,1.09368628,2940.2,2939.9,3.01e-06]
[1769327588777,0.17863636,2940.2,2939.9,3.01e-06]
[1769327588976,0.90267013,2940.8,2939.9,3.01e-06]
[1769327589183,0.95340788,2940.6,2939.9,3.01e-06]
[1769327589567,0.94517557,2940.8,2939.9,3.01e-06]
[1769327589876,0.95140788,2940.7,2939.9,3.01e-06]
[1769327590179,0.95140788,2940.7,2939.9,0.95141089]
[1769327590370,0.90267013,2941.0,2939.9,0.95141089]
[1769327593078,1.92339944,2941.0,2939.9,0.95141089]
[1769327593278,0.94517412,2940.9,2939.9,0.95141089]
[1769327595288,0.001,2940.7,2939.9,0.95141089]
[1769327599851,0.94277357,2940.9,2939.9,0.95141089]
[1769327600054,1.26038378,2940.9,2939.9,0.95141089]
[1769327601579,1.22028034,2940.9,2939.9,0.95141089]
[1769327603388,0.31761021,2940.9,2939.9,0.95141089]
[1769327603557,1.02072931,2941.0,2939.9,0.95141089]
[1769327604365,1.02072931,2941.0,2940.1,0.94100028]
[1769327604687,0.001,2941.1,2940.1,0.94100028]
[1769327605689,0.0435011,2941.1,2940.1,0.94100028]
[1769327605901,0.90645504,2941.0,2940.1,0.94100028]
[1769327606188,0.94895903,2940.9,2940.1,0.94100028]
[1769327607091,0.04250399,2940.9,2940.1,0.94300028]
[1769327607295,0.04250255,2941.0,2940.1,0.94300028]
[1769327607595,0.001,2940.9,2940.1,0.94300028]
[1769327619113,0.001,2940.9,2940.2,0.98904834]
[1769327619300,0.001,2940.9,2940.4,0.96366909]
[1769327620910,0.001,2940.9,2940.4,0.95722707]
[1769327621107,0.001,2940.9,2940.2,0.96366909]
[1769327630434,0.001,2940.9,2940.3,0.002]
[1769327631625,0.92257216,2940.9,2940.3,0.002]
[1769327633895,0.04250544,2940.8,2940.3,0.002]
[1769327634724,0.9640776,2940.8,2940.3,0.002]
[1769327635542,0.92157216,2940.8,2940.3,0.002]
[1769327639545,0.001,2940.9,2940.3,0.002]
[1769327643539,0.001,2940.7,2940.3,0.002]
[1769327655868,0.001,2940.5,2940.3,0.002]
[1769327705515,0.001,2940.7,2940.3,0.96209622]
[1769327710449,0.001,2940.7,2940.3,0.002]
[1769327711758,0.99272482,2940.7,2940.3,0.002]
[1769327712129,0.99272482,2940.7,2940.1,0.002]
[1769327715628,0.99272482,2940.7,2940.3,0.002]